[Event "French-ch U16-U18 2024"]
[Site "Agen"]
[Date "2024.04.21"]
[Round "9.10"]
[White "Reymann, Nathan"]
[Black "Lissillour, Baptiste"]
[Result "1/2-1/2"]
[ECO "B30"]
[WhiteElo "1938"]
[BlackElo "2130"]
[Annotator "TA"]
[PlyCount "65"]
[EventDate "2024.04.14"]
[EventType "swiss"]
[EventCountry "FRA"]
[SourceTitle "playchess.com"]
[Source "ChessBase"]
[SourceQuality "1"]
[TimeControl "5400+30"]

{[%evp 9,65,-8,-13,-6,0,-16,-1,-24,-16,-19,-14,-27,-12,-18,0,-72,-59,-64,-64,-120,-124,-121,91,74,76,80,110,93,108,48,55,34,35,47,118,122,157,95,245,-291,-296,-194,9,0,0,0,0,0,0,-103,0,0,0,0,0,0,0,0]} 1. e4 {[%emt 0:00:02]} c5 {[%emt 0:01:05]} 2. Nf3 {[%emt 0:00:03]} Nc6 {[%emt 0:00:06]} 3. Nc3 {[%emt 0:00:04]} g6 {[%emt 0:06:19]} 4. Bb5 {[%emt 0:01:07]} Bg7 {[%emt 0:00:52]} 5. Bxc6 {[%emt 0:00:22]} bxc6 {[%emt 0:00:48]} 6. d3 {[%emt 0:02:03]} e5 {[%emt 0:04:07]} 7. Be3 {[%emt 0:18:01]} d6 {[%emt 0:00:46]} 8. h3 {[%emt 0:06:44]} f5 {[%emt 0:06:58]} 9. exf5 {[%emt 0:13:17]} gxf5 {[%emt 0:00:11]} 10. Ng5 {[%emt 0:12:49]} Nf6 {[%emt 0:00:07] Dodges Qh5+} 11. f4 {[%emt 0:00:57]} h6 {[%emt 0:00:57]} 12. Nf3 {[%emt 0:09:05]} (12. fxe5 $1 $11 hxg5 13. exf6 Qxf6 (13... Bxf6 14. O-O $11) 14. Qf3) 12... e4 $17 {[%emt 0:00:28]} 13. dxe4 {[%emt 0:05:07]} fxe4 {[%emt 0:00:06]} 14. Nd2 {[%emt 0:01:28]} (14. Nh4 $1 $15) 14... O-O {[%emt 0:00:49] Threatens to win with ...Nd5.} 15. O-O {[%emt 0:04:00][%cal Of4f5]} Nd5 $2 {[%emt 0:01:27]} (15... Qe7 $1 $17 {keeps the pressure on. Hoping for ...Nd5.} 16. Re1 d5) 16. Nxd5 $1 $16 {[%emt 0:03:10]} cxd5 {[%emt 0:00:02][%cal Bc6d5,Bd5d4][%mdl 32] [#]} 17. Nxe4 $1 {[%emt 0:00:36]} Bb7 {[%emt 0:03:09][%cal Od8e7] ...Qe7! would now be deadly.} (17... Be6 18. f5) 18. Ng3 {[%emt 0:02:37]} Qe8 {[%emt 0:01:46]} 19. Re1 {[%emt 0:04:58]} (19. Bc1 $16) 19... d4 $14 {[%emt 0:01:21]} 20. Bd2 {[%emt 0:01:24]} Qc6 {[%emt 0:03:44]} 21. Re2 {[%emt 0:00:55]} Rae8 {[%emt 0:01:41] [#]} (21... Kh7 $14) 22. Rf2 $1 $16 {[%emt 0:00:18] And now f5 would win.} c4 {[%emt 0:07:15] ...c3 is the strong threat.} 23. c3 {[%emt 0:01:26]} (23. f5 $142) 23... Qb6 {[%emt 0:00:45]} (23... Kh7 $16) 24. cxd4 $4 {[%emt 0:03:59][%mdl 8192]} (24. f5 $18 d5 25. Qg4) 24... Bxd4 $19 {[%emt 0:10:24]} 25. Qg4+ {[%emt 0:00:06]} Kf7 $2 {[%emt 0:00:40]} ({Black should play} 25... Kh7 $19 26. Raf1 Rg8 (26... Bxf2+ 27. Rxf2 Qxb2 28. Nh5 $11) (26... Qxb2 27. Qd7+ Kg8 28. Kh2 $11) 27. Qf5+ (27. Qd7+ $2 Kh8 $19) 27... Kh8) 26. Qf5+ {[%emt 0:06:15]} ({Don't blunder} 26. Qh5+ $2 Ke6 27. Qg4+ (27. Qxh6+ $2 {too greedy.} Kd7 $19) 27... Ke7 (27... Kd5 28. Raf1 $11) 28. Re1+ Kd8 $19) 26... Ke7 {[%emt 0:01:54]} 27. Re1+ {[%emt 0:00:24]} Kd8 {[%emt 0:00:01]} 28. Rxe8+ {[%emt 0:00:12]} Kxe8 {[%emt 0:00:02]} 29. Qe6+ $1 {[%emt 0:00:31]} Kd8 {[%emt 0:00:04]} 30. Ba5 $1 {[%emt 0:00:43] The position is equal.} Bxf2+ {[%emt 0:00:23] This pair of bishops is nice.} 31. Kf1 {[%emt 0:00:33] Dancing on a razor blade.} Qxa5 {[%emt 0:00:59]} 32. Qxd6+ {[%emt 0:00:11]} Ke8 {[%emt 0:02:47][%csl Gf2][%cal Ra5e1]} 33. Qe6+ {[%emt 0:03:33] Weighted Error Value: White=0.32/Black=0.42.  Missed win:     	White=1     	Black=1      Mistake:       	White=4     	Black=3      Inaccurate:     	---       	Black=2      OK:         	White=8     	Black=6      Best:        	White=5     	Black=4      Strong:       	White=4     	---        Brilliant:      	White=1     	---} 1/2-1/2

[Event "French-ch U16-U18 2024"]
[Site "Agen"]
[Date "2024.04.21"]
[Round "9.11"]
[White "Grimault, Leane"]
[Black "Deladerriere, Calypso"]
[Result "1-0"]
[ECO "A09"]
[WhiteElo "1930"]
[BlackElo "1935"]
[Annotator "TA"]
[PlyCount "149"]
[EventDate "2024.04.14"]
[EventType "swiss"]
[EventCountry "FRA"]
[SourceTitle "playchess.com"]
[Source "ChessBase"]
[SourceQuality "1"]
[TimeControl "5400+30"]

{[%evp 9,149,-25,-35,-31,-45,-45,-38,-45,-31,-39,-31,-27,-27,-62,-53,-56,11,-38,0,0,16,3,14,0,0,0,93,-42,-13,-95,-25,-10,-16,-21,-33,-30,118,117,132,126,115,112,133,108,131,144,143,109,146,127,150,115,221,222,258,189,272,258,309,292,406,404,408,409,394,389,568,565,755,639,690,689,624,653,914,889,1129,1856,1856,1794,1729,0,0,0,1187,1221,1668,1479,1020,1336,1115,1331,1158,1040,1032,1041,1073,1058,1024,838,963,920,857,804,804,804,781,758,1500,1500,1326,1326,1279,1242,1607,1424,1714,1406,29946,29948,29941,29943,29945,29946,29938,3002,29953,29955,29956,1787,29959,29958,29959,1232,29966,29966,29970,29970,29975,29975,29989,29990]} 1. Nf3 {[%emt 0:05:37]} d5 {[%emt 0:00:22][%cal Bd7d5,Bd5d4][%mdl 32]} 2. e3 {[%emt 0:00:15]} Nc6 {[%emt 0:00:46]} 3. c4 {[%emt 0:01:27]} d4 {[%emt 0:00:39]} 4. d3 {[%emt 0:01:32]} e5 {[%emt 0:01:26]} 5. Be2 {[%emt 0:01:28]} Bc5 {[%emt 0:01:12]} 6. O-O {[%emt 0:02:57]} Nge7 {[%emt 0:01:54]} 7. exd4 {[%emt 0:00:54]} Bxd4 {[%emt 0:00:46]} 8. Nc3 {[%emt 0:02:51] Black is slightly better.} O-O {[%emt 0:01:24]} 9. a3 {[%emt 0:05:35]} a5 {[%emt 0:01:15]} 10. Rb1 {[%emt 0:02:15]} Nf5 {[%emt 0:01:57]} 11. Nd5 {[%emt 0:02:44]} Be6 {[%emt 0:02:10]} 12. Ne3 {[%emt 0:00:39]} Nh4 {[%emt 0:03:48]} (12... a4 $15) 13. Nc2 {[%emt 0:04:49]} (13. b4 $11) 13... Ba7 {[%emt 0:06:50]} (13... Nxf3+ {simplifies} 14. Bxf3 Bf5 15. Bd5 Qd6) 14. b4 {[%emt 0:00:38]} axb4 {[%emt 0:01:36]} 15. axb4 {[%emt 0:00:25]} Bf5 {[%emt 0:05:25]} 16. b5 {[%emt 0:03:45]} Nxf3+ {[%emt 0:04:18]} 17. Bxf3 {[%emt 0:00:50]} Nd4 {[%emt 0:01:28]} (17... Na5 $11 18. Be2 Re8) 18. Be4 {[%emt 0:08:10]} (18. Bxb7 $16 Rb8 19. Be4) 18... c6 {[%emt 0:10:54]} 19. Ne3 {[%emt 0:13:07]} (19. Bxf5 $11 {remains equal.} Nxf5 20. Qf3) 19... Be6 {[%emt 0:01:32]} (19... Bxe4 $17 20. dxe4 Qh4) 20. Ba3 $11 {[%emt 0:04:05]} Re8 {[%emt 0:00:40] [#] Hoping for ...f5.} 21. bxc6 {[%emt 0:01:03]} bxc6 {[%emt 0:00:52] And now ...f5 would win.} 22. Bb2 {[%emt 0:03:04]} f5 {[%emt 0:01:26]} (22... Qd7 $11 {keeps the balance.}) 23. Bxd4 $16 {[%emt 0:01:13]} fxe4 {[%emt 0:05:22]} 24. Bxa7 {[%emt 0:01:14]} (24. Bxe5 $6 Bxe3 (24... exd3 25. Rb7 $14) 25. fxe3 Bxc4 (25... Qxd3 26. Qxd3 exd3 27. Rb7 $16) 26. Bxg7 Qxd3 $14) 24... Rxa7 {[%emt 0:00:11]} 25. dxe4 {[%emt 0:00:18]} Qd4 {[%emt 0:01:46]} 26. Qc2 {[%emt 0:02:11]} Rea8 {[%emt 0:04:11]} 27. Rfd1 {[%emt 0:03:13]} Qc5 {[%emt 0:00:37]} 28. Qb3 {[%emt 0:03:54]} Qf8 {[%emt 0:06:40]} 29. Qb6 {[%emt 0:03:56]} Ra2 {[%emt 0:02:13]} 30. Rf1 {[%emt 0:01:08]} (30. Qxc6 $6 Qxf2+ 31. Kh1 Bf7 $14) 30... R2a6 {[%emt 0:01:38]} (30... Rc8 $16 31. Ra1 Rxa1 32. Rxa1 h5) 31. Qc7 $18 {[%emt 0:01:12]} Re8 {[%emt 0:02:58]} 32. Rb7 {[%emt 0:02:46]} (32. Qxe5 Bxc4 33. Nxc4 Rxe5 34. Nxe5 Ra2 $14) 32... Bc8 {[%emt 0:05:01]} (32... Qf7 {is a better defense.} 33. Qxf7+ Bxf7) 33. Rb8 {[%emt 0:01:18]} Ra2 {[%emt 0:01:05]} 34. Qxc6 {[%emt 0:01:38]} Bd7 {[%emt 0:02:00]} 35. Qd5+ {[%emt 0:01:09]} (35. Qxd7 Rxb8 36. c5 Re2 $16) 35... Kh8 {[%emt 0:00:19]} 36. Rb6 {[%emt 0:03:39]} Bc8 {[%emt 0:03:50]} 37. c5 {[%emt 0:00:53]} Re2 {[%emt 0:01:14]} (37... Ra5 {keeps fighting.} 38. Rd6 Qg8) 38. Nc4 {[%emt 0:03:58][%cal Be3c4,Bc4d6,Bd6f7][%mdl 32] Black must now prevent Nd6!} Qf4 {[%emt 0:04:12]} 39. Qd3 {[%emt 0:00:18]} Rxe4 {[%emt 0:14:03]} 40. Nd6 {[%emt 0:00:43][%csl LRe4,LRe8]} Rd4 {[%emt 0:00:00]} 41. Qb3 {[%emt 0:00:30]} Rf8 {[%emt 0:00:00]} 42. Rb8 {[%emt 0:00:47]} Ba6 {[%emt 0:00:00]} 43. Rxf8+ {[%emt 0:00:12]} Qxf8 {[%emt 0:00:00]} 44. Nf7+ {[%emt 0:00:06]} Kg8 {[%emt 0:00:00]} 45. Nh6+ {[%emt 0:00:07]} Kh8 {[%emt 0:00:00][%cal Oa6c4] ...Bc4! would now be deadly.} 46. Nf7+ $40 {[%emt 0:00:31][%mdl 128] White has some attack.} Kg8 {[%emt 0:00:00] Threatens to win with ...Bc4. Black is on the road to losing.} 47. Nxe5+ {[%emt 0:00:24]} Kh8 {[%emt 0:00:00]} 48. Nf7+ {[%emt 0:01:17]} Kg8 {[%emt 0:00:00]} 49. Nd6+ {[%emt 0:00:06]} Kh8 {[%emt 0:00:00]} 50. Re1 {[%emt 0:01:11] aiming for Qf3.} h6 {[%emt 0:01:05]} 51. Re8 {[%emt 0:00:57]} Qxe8 {[%emt 0:00:07]} 52. Nxe8 {[%emt 0:00:04] Intending h3 and mate.} Re4 {[%emt 0:00:05] [#]} 53. h3 $1 {[%emt 0:00:29] Qf7 would kill now.} Rxe8 {[%emt 0:00:14][%mdl 4096] Endgame. KQ-KRB} 54. Qa4 {[%emt 0:00:22]} Re1+ {[%emt 0:00:38]} 55. Kh2 {[%emt 0:00:05]} Bc8 {[%emt 0:00:51]} 56. Qa8 {[%emt 0:00:09]} Re8 {[%emt 0:00:13]} 57. c6 {[%emt 0:00:27][%cal Bc5c6,Bc6c7][%mdl 32]} Kh7 {[%emt 0:01:05]} 58. c7 {[%emt 0:00:13]} Kh8 {[%emt 0:00:22]} 59. Qc6 {[%emt 0:00:27]} Rf8 {[%emt 0:00:05]} 60. Qd6 {[%emt 0:01:37]} Kg8 {[%emt 0:00:59]} 61. f4 {[%emt 0:00:33][%cal Bf2f4,Bf4f5,Bf5f6][%mdl 32]} Re8 {[%emt 0:01:59]} 62. g4 {[%emt 0:00:45]} Kf7 {[%emt 0:00:52]} 63. f5 {[%emt 0:00:37] White threatens Qg6+ and mate.} Re7 {[%emt 0:00:37]} 64. Qd5+ {[%emt 0:02:12]} Kf8 {[%emt 0:00:16]} 65. Qd8+ {[%emt 0:00:17]} Re8 {[%emt 0:00:09]} 66. f6 {[%emt 0:00:18]} g6 {[%emt 0:00:48]} 67. Qd2 {[%emt 0:01:05]} Kf7 {[%emt 0:01:35]} 68. Qxh6 {[%emt 0:00:13]} Kxf6 {[%emt 0:00:05]} 69. Qf4+ {[%emt 0:00:30]} (69. Kg3 $142 Rg8 70. Qh7 Rg7 71. Qh8 Bd7 72. Qf8+ (72. c8=B Bxc8 73. Qf8+ Rf7 $18) 72... Rf7 73. g5+ (73. c8=R Rxf8 74. Rxf8+ Ke7 $18) (73. c8=Q Bxc8 74. g5+ Ke6 $18) 73... Ke6 74. c8=Q (74. c8=R Rxf8 75. Rxf8 Ke5 $18) (74. Qg8 Ke7 $18) 74... Bxc8 75. Qxc8+ Ke7 76. Qc5+ Ke8 77. Qc6+ Kf8 78. Qxg6) 69... Ke7 {[%emt 0:00:53]} 70. Kg3 {[%emt 0:00:32]} Be6 {[%emt 0:01:00]} 71. Qe5 {[%emt 0:02:30]} (71. Qg5+ $142 Kf7 72. Kf4 (72. Qf4+ Ke7 $18) 72... Bc8 73. Qd5+ Be6 74. Qd8 Bc8 75. Kg5 Rg8 76. Qf6+ Ke8 77. Qd6) 71... Kf7 {[%emt 0:00:34]} 72. Kf4 {[%emt 0:00:29] White mates.} Bc8 {[%emt 0:00:36]} 73. Qd6 {[%emt 0:00:39]} Re6 {[%emt 0:01:06]} 74. Qd5 {[%emt 0:00:48]} Kf6 {[%emt 0:00:39]} 75. Qd8+ {[%emt 0:00:12] Weighted Error Value: White=0.34/Black=0.47.  Mistake:       	White=3     	Black=7      Inaccurate:     	White=1     	Black=6      OK:         	White=16    	Black=9      Best:        	White=2     	Black=2} 1-0

[Event "French-ch U16-U18 2024"]
[Site "Agen"]
[Date "2024.04.21"]
[Round "9.12"]
[White "Le Coz, Marie Sarah"]
[Black "Berezovsky, Fiorina"]
[Result "1-0"]
[ECO "A46"]
[WhiteElo "1840"]
[BlackElo "1848"]
[Annotator "NA RC COMBH"]
[PlyCount "79"]
[EventDate "2024.04.14"]
[EventType "swiss"]
[EventCountry "FRA"]
[SourceTitle "playchess.com"]
[Source "ChessBase"]
[SourceQuality "1"]
[TimeControl "5400+30"]

1. d4 {[%emt 0:00:05]} Nf6 {[%emt 0:00:15]} 2. Nf3 {[%emt 0:00:20]} e6 {[%emt 0:00:18]} 3. g3 {[%emt 0:00:28]} b5 {[%emt 0:00:17]} 4. Bg2 {[%emt 0:00:48]} Bb7 {[%emt 0:00:24]} 5. O-O {[%emt 0:00:55]} Be7 {[%emt 0:02:39]} 6. b3 {[%emt 0:03:21] A46: 1 d4 Nf6 2 Nf3 e6: Torre, London and Colle Systems.} b4 {[%emt 0:01:40]} 7. Bb2 {[%emt 0:02:52]} d5 {[%emt 0:03:33]} 8. Nbd2 {[%emt 0:03:22]} Nbd7 {[%emt 0:03:25]} 9. Ne5 {[%emt 0:04:37]} O-O {[%emt 0:04:35]} 10. e3 {[%emt 0:02:20]} c5 {[%emt 0:05:32]} 11. f4 {[%emt 0:02:45]} ({Better is} 11. Nxd7 $11 Nxd7 12. dxc5) 11... Qc7 {[%emt 0:04:43]} 12. g4 {[%emt 0:03:13]} Nxe5 {[%emt 0:03:54]} 13. dxe5 {[%emt 0:04:34]} Ne4 {[%emt 0:04:32]} 14. Nxe4 {[%emt 0:04:20]} dxe4 {[%emt 0:00:06]} 15. f5 {[%emt 0:03:00]} exf5 {[%emt 0:09:29]} 16. gxf5 {[%emt 0:02:37]} f6 {[%emt 0:00:29]} 17. e6 {[%emt 0:02:39]} Bd6 {[%emt 0:00:55]} 18. Qh5 {[%emt 0:03:28]} Rad8 {[%emt 0:04:27]} 19. Rad1 {[%emt 0:04:03]} Ba6 {[%emt 0:03:37] [#]} 20. Rfe1 $1 {[%emt 0:03:21]} Bb7 {[%emt 0:02:01]} 21. Kh1 {[%emt 0:03:50]} Qc6 {[%emt 0:05:33]} (21... Kh8 $14) 22. Qg4 {[%emt 0:06:28]} Qe8 {[%emt 0:02:41]} (22... Kh8 $142 23. Bf1 Be7) 23. Rg1 {[%emt 0:08:40]} (23. Bxe4 Bxe4+ 24. Qxe4 Qh5 $11) 23... Kh8 {[%emt 0:03:58]} 24. Bf1 {[%emt 0:02:18]} Qe7 {[%emt 0:01:14]} 25. Rd2 {[%emt 0:03:37]} Bc7 {[%emt 0:02:44]} 26. Rdg2 {[%emt 0:01:35]} Rg8 {[%emt 0:02:00]} 27. Qh5 {[%emt 0:06:02]} Bc6 $2 {[%emt 0:01:40]} (27... Rdf8 28. Rg4 g5 29. fxg6 (29. Rxg5 Rxg5 30. Qxg5 Bc6 $18) 29... Rg7) 28. Rg4 {[%emt 0:02:02]} h6 {[%emt 0:06:48]} 29. Rg6 {[%emt 0:02:24]} Kh7 {[%emt 0:02:55] [#]} 30. Bxf6 $1 {[%emt 0:01:06]} Qxf6 {[%emt 0:02:15]} 31. Rxf6 {[%emt 0:00:47]} gxf6 {[%emt 0:00:04]} 32. Qf7+ {[%emt 0:02:28]} Kh8 {[%emt 0:00:06]} 33. Qxf6+ {[%emt 0:00:18]} Kh7 {[%emt 0:00:10]} 34. Qf7+ {[%emt 0:00:23]} Kh8 {[%emt 0:00:05]} 35. Rg6 {[%emt 0:00:37]} Bf4 {[%emt 0:01:53]} 36. e7 {[%emt 0:02:32]} Rde8 {[%emt 0:02:15]} 37. Qf6+ {[%emt 0:02:08]} Kh7 {[%emt 0:00:11]} 38. Rxg8 {[%emt 0:00:44]} Rxg8 {[%emt 0:00:36]} 39. Qxc6 {[%emt 0:00:49]} Bxe3 {[%emt 0:00:09]} 40. Bg2 {[%emt 0:01:25]} 1-0

[Event "French-ch U16-U18 2024"]
[Site "Agen"]
[Date "2024.04.21"]
[Round "9.13"]
[White "Diez, Agathe"]
[Black "Yaghi, leen"]
[Result "1-0"]
[ECO "E11"]
[WhiteElo "1954"]
[BlackElo "1941"]
[Annotator "TA"]
[PlyCount "97"]
[EventDate "2024.04.14"]
[EventType "swiss"]
[EventCountry "FRA"]
[SourceTitle "playchess.com"]
[Source "ChessBase"]
[SourceQuality "1"]
[TimeControl "5400+30"]

{[%evp 17,97,0,2,-14,21,18,20,20,58,48,106,55,61,44,53,16,51,0,15,31,85,22,83,-14,-2,0,-2,-30,-35,-19,37,32,25,-19,97,3,26,28,59,13,41,24,28,35,51,-153,-115,-127,-118,-108,-106,-116,-112,-29961,-29961,-29955,0,0,0,0,0,0,0,0,0,0,0,0,0,0,0,0,0,0,612,595,1060,1015,6079,1006,29985,29986]} 1. d4 {[%emt 0:00:34]} d5 {[%emt 0:00:12]} 2. c4 {[%emt 0:00:09]} e6 {[%emt 0:00:09]} 3. Nf3 {[%emt 0:00:12]} Nf6 {[%emt 0:00:13]} 4. g3 {[%emt 0:00:15]} Bb4+ {[%emt 0:00:43]} 5. Bd2 {[%emt 0:00:17]} a5 {[%emt 0:00:18]} 6. a3 {[%emt 0:01:56]} Be7 {[%emt 0:00:59]} 7. Bg2 {[%emt 0:00:41]} O-O {[%emt 0:03:50]} 8. Qc2 {[%emt 0:01:58]} c6 {[%emt 0:04:04]} 9. O-O {[%emt 0:04:45]} Nbd7 {[%emt 0:00:14]} 10. Rd1 {[%emt 0:11:23]} Ne4 {[%emt 0:11:16]} 11. Nc3 {[%emt 0:02:51]} f5 {[%emt 0:06:43]} 12. Bf4 {[%emt 0:06:36] The position is equal.} Ndf6 {[%emt 0:02:51]} 13. Ne5 {[%emt 0:04:07]} Bd7 {[%emt 0:02:03]} (13... g5 $14 14. Be3 Qc7) 14. f3 {[%emt 1:01:46]} (14. c5 $16) 14... Nxc3 $14 {[%emt 0:09:01]} 15. bxc3 {[%emt 0:00:00]} c5 {[%emt 0:19:20]} 16. Qb3 {[%emt 0:00:00]} Bc6 {[%emt 0:00:30] [#]} 17. e4 {[%emt 0:00:00]} a4 {[%emt 0:16:03]} 18. Qc2 {[%emt 0:00:00]} Nh5 {[%emt 0:04:50]} (18... fxe4 $14 19. fxe4 Nxe4) 19. Be3 {[%emt 0:02:30] White is more active.} ({White should try} 19. Bc1 $16) 19... f4 (19... dxe4 $11 20. fxe4 (20. dxc5 Qc7 $17) 20... Bxe4 21. Bxe4 fxe4) 20. gxf4 {[%emt 0:00:00]} (20. cxd5 $16 exd5 21. Nxc6 bxc6 22. gxf4 (22. Bf2 c4 $11)) 20... Nxf4 $11 {[%emt 0:02:23]} 21. cxd5 {[%emt 0:00:00]} exd5 {[%emt 0:00:51]} 22. Qd2 {[%emt 0:00:00]} Nxg2 {[%emt 0:00:28]} 23. Qxg2 {[%emt 0:00:00]} Bd6 {[%emt 0:08:27]} ({Black should play} 23... Qe8 $11) 24. Nxc6 $14 {[%emt 0:00:00]} bxc6 {[%emt 0:00:01]} 25. e5 {[%emt 0:00:00]} cxd4 {[%emt 0:03:53] [#]} (25... Bc7 $11) 26. cxd4 {[%emt 0:00:00]} (26. Bg5 $1 $16 {[%cal Rg5d8]} Be7 27. Bh6) 26... Bb8 {[%emt 0:00:16]} 27. Rac1 {[%emt 0:00:00]} Qd7 {[%emt 0:03:03]} 28. Rc3 {[%emt 0:00:00]} (28. Qg4 $14 {was preferrable.} Rf5 29. Kg2 (29. Rxc6 h5 $14)) 28... Ba7 {[%emt 0:00:26]} 29. Rdc1 {[%emt 0:00:00]} Rac8 {[%emt 0:00:20]} 30. Qg4 {[%emt 0:00:32]} Qe8 {[%emt 0:01:27]} 31. Bh6 $2 {[%emt 0:02:43] [#]} (31. f4 $14 {keeps the upper hand.}) 31... Bxd4+ $1 {[%emt 0:00:28][%mdl 512]} 32. Qxd4 {[%emt 0:00:06]} Qg6+ {[%emt 0:00:26]} (32... gxh6 $6 33. Kh1 Qe7 34. Qxa4 $11 (34. Rxc6 Rxc6 35. Rxc6 Qxa3 $11)) 33. Kh1 {[%emt 0:00:38][%cal Oh6g7] Threatens to win with Bxg7!} Qxh6 {[%emt 0:00:01]} (33... gxh6 $2 34. Rg1 $18 (34. Qxa4 Qf7 $14) (34. Qxa4 Kh8 $14)) 34. Qxa4 {[%emt 0:00:23][%cal Rc3c6]} (34. Rxc6 $2 Rxc6 35. Qxd5+ Re6 $19) 34... Rxf3 $1 {[%emt 0:00:46] ...Qh3 would now be deadly.} 35. Rxc6 $2 {[%emt 0:02:07][%mdl 8192]} (35. Qg4 $17 Rff8 36. Re1) 35... Rxc6 {[%emt 0:00:45]} (35... Qxc1+ 36. Rxc1 Rxc1+ 37. Kg2 $17) 36. Rxc6 $17 {[%emt 0:00:23] KQR-KQR} Qh5 $2 {[%emt 0:00:37]} (36... Qh3 {mates} 37. Qa8+ Rf8 38. Qxf8+ Kxf8 39. Kg1 d4 (39... Qxa3 $2 40. Rc8+ Kf7 41. Rc7+ Kg6 42. Rc6+ Kf5 43. Kf1 $19) 40. Rc2 Qxa3 41. Rc8+ Ke7 42. Rc7+ Ke6 43. Rc8 Qe3+ (43... Kxe5 44. Rc7 d3 45. Kf2 Qb2+ 46. Kf3 Qe2+ 47. Kg3 Qe1+ 48. Kg2 d2 49. Re7+ Kd6 50. Rxe1 dxe1=Q 51. Kf3 Ke5 52. h3 Qc3+ 53. Kg2 Kf4 54. h4 Qc2+ 55. Kg1 Kf3 56. h5 Qg2#) 44. Kg2 d3 (44... Kxe5 45. Re8+ Kf4 46. Rxe3 Kxe3 47. Kf1 d3 48. Ke1 d2+ 49. Kd1 g5 50. Kc2 g4 51. Kc3 d1=Q 52. Kb4 Qd6+ 53. Kb5 Kd3 54. h4 gxh3 55. Ka4 Qb6 56. Ka3 Kc3 57. Ka4 Qb4#) 45. Rf8 d2 (45... Qxe5 46. Re8+ Kf5 47. Rxe5+ Kxe5 48. Kf2 Kd4 49. h4 Kc3 50. h5 d2 51. Ke2 Kc2 52. Kf3 d1=Q+ 53. Kf4 Qxh5 54. Ke4 Kc3 55. Kf4 Kd4 56. Kg3 Ke3 57. Kg2 Qg5+ 58. Kh1 Kf3 59. Kh2 Qg2#) 46. Rf1 Qe2+ (46... Kxe5 {gets mated.} 47. Ra1 Qd4 48. Rf1 d1=Q 49. Rxd1 Qxd1 50. Kg3 Qd3+ 51. Kg2 Kf4 52. h3 Qc2+ 53. Kg1 Kg3 54. Kh1 Qh2#) (46... Qe4+ 47. Kg3 Qe3+ 48. Kg2 Qe2+ 49. Kg1 Kxe5 50. h4 d1=Q 51. Rxd1 Qxd1+ 52. Kf2 Kf4 53. h5 Qd2+ 54. Kf1 Kf3 55. Kg1 Qg2#) 47. Kg1 Kxe5 (47... d1=B 48. Rf8 Bc2 49. Rf2 Qe1+ 50. Rf1 Qe3+ 51. Rf2 Bf5 52. h3 Bxh3 53. Kh1 Qe1+ 54. Kh2 Qxf2+ 55. Kxh3 Kf5 56. e6 Kf4 57. e7 Qg3#) (47... Qxf1+ {leads to mate.} 48. Kxf1 d1=Q+ 49. Kf2 Qd3 50. h3 Kf5 51. h4 Kf4 52. Kg2 Qc2+ 53. Kh1 Kg3 54. h5 Qh2#) 48. h3 Ke4 (48... d1=B 49. Rf7 Qe1+ 50. Kh2 Ke6 51. Rf8 Ke7 52. Rf5 Qe2+ 53. Kg1 Qe3+ 54. Kf1 Qd3+ 55. Kf2 Qxf5+ 56. Ke3 Qxh3+ 57. Ke4 Kd6 58. Kd4 Be2 59. Ke4 Qf3+ 60. Kd4 Qd3#) (48... Qxf1+ 49. Kxf1 d1=Q+ 50. Kf2 Kf4 51. Kg2 Qe2+ 52. Kg1 Kf3 53. h4 Qg2#) 49. Ra1 d1=Q+ (49... d1=B 50. Ra3 Qd2 51. h4 Kf4 52. h5 Bf3 53. Ra4+ Kg3 54. Rg4+ Bxg4 55. Kh1 Qh2#) 50. Rxd1 Kf3 (50... Qxd1+ 51. Kf2 Qf3+ 52. Kg1 Qg3+ 53. Kf1 Kf3 54. h4 Qf2#) 51. Rf1+ Kg3 52. Rf3+ Qxf3 53. h4 Qg2#) 37. Rc8+ {[%emt 0:00:31]} Rf8 {[%emt 0:00:13]} 38. Rxf8+ {[%emt 0:00:28]} Kxf8 $11 {[%emt 0:00:00] KQ-KQ} 39. Qa8+ {[%emt 0:00:06]} Ke7 {[%emt 0:00:45]} 40. Qxd5 {[%emt 0:00:07]} Qf5 {[%emt 0:00:57][%cal Rf5f1]} 41. Qd6+ {[%emt 0:01:03]} Ke8 {[%emt 0:00:29]} 42. Kg2 {[%emt 0:00:14] Prevents Qf1+.} Qg4+ {[%emt 0:00:31]} 43. Kf2 {[%emt 0:00:08]} Qh4+ {[%emt 0:00:04]} 44. Ke3 {[%emt 0:00:16]} Qh3+ {[%emt 0:00:37]} 45. Kd4 {[%emt 0:00:07] And now e6 would win.} Qg4+ {[%emt 0:00:54][%mdl 8192]} (45... Qxh2 $11 46. Qb8+ Ke7) 46. Kc5 $18 {[%emt 0:00:47] Black must now prevent e6.} Qg1+ {[%emt 0:00:10] [#]} 47. Kc6 $1 {[%emt 0:00:12] White wants to mate with e6.} Qg2+ {[%emt 0:00:52]} 48. Kc7 {[%emt 0:00:12]} (48. Qd5 $142 Qh3 49. e6 (49. Qg8+ Ke7 $18) 49... Qc3+ 50. Kb6 (50. Qc5 Qf3+ 51. Kb6 Qd1 $18)) 48... Qg4 {[%emt 0:00:28]} 49. e6 {[%emt 0:00:29] Never resign too early!   Weighted Error Value: White=0.40/Black=0.65.  Loses game:     	White=1     	Black=1      Mistake:       	White=7     	Black=5      Inaccurate:     	White=3     	Black=7      OK:         	White=8     	Black=8      Best:        	White=1     	Black=1      Strong:       	---       	Black=1} 1-0